[Event "RUS-chTW Premier 2019"]
[Site "Sochi"]
[Date "2019.05.01"]
[Round "1.1"]
[White "Grabuzova, Tatiana"]
[Black "Shuvalova, Polina"]
[Result "1/2-1/2"]
[ECO "E01"]
[WhiteElo "2314"]
[BlackElo "2439"]
[Annotator "NA"]
[PlyCount "83"]
[EventDate "2019.04.30"]
[EventType "team-tourn"]
[EventCountry "RUS"]
[SourceTitle "playchess.com"]
[Source "ChessBase"]
[SourceQuality "1"]
[TimeControl "40/5400+30:1800+30"]

1. d4 {[%emt 0:00:00]} Nf6 {[%emt 0:00:00]} 2. c4 {[%emt 0:00:00]} e6 {[%emt 0:00:00]} 3. g3 {[%emt 0:00:00]} d5 {[%emt 0:00:00]} 4. Bg2 {[%emt 0:00:07]} Bb4+ {[%emt 0:00:06]} 5. Bd2 {[%emt 0:00:06]} Be7 {[%emt 0:00:09]} 6. Nf3 {[%emt 0:00:15]} c6 {[%emt 0:00:06]} 7. Qc2 {[%emt 0:02:23]} Nbd7 {[%emt 0:00:13]} 8. O-O {[%emt 0:01:54]} b6 {[%emt 0:00:17]} 9. cxd5 {[%emt 0:15:50]} cxd5 {[%emt 0:00:08]} 10. Rc1 {[%emt 0:00:05]} O-O {[%emt 0:04:44]} 11. Bf4 {[%emt 0:04:11]} Bb7 {[%emt 0:06:08]} 12. Na3 {[%emt 0:01:39]} Rc8 {[%emt 0:11:31]} 13. Qb3 {[%emt 0:00:36]} a6 {[%emt 0:01:49]} 14. Nc2 {[%emt 0:03:06]} Rc4 {[%emt 0:13:37]} 15. Nd2 {[%emt 0:24:10]} Rc6 {[%emt 0:02:26]} 16. Nb4 {[%emt 0:04:25]} Rxc1+ {[%emt 0:01:29]} 17. Rxc1 {[%emt 0:00:08]} Qa8 {[%emt 0:00:13]} 18. Nd3 {[%emt 0:03:34]} Rc8 {[%emt 0:00:38]} 19. Nf3 {[%emt 0:04:33]} Rxc1+ {[%emt 0:03:40]} 20. Bxc1 {[%emt 0:01:11]} Qc8 {[%emt 0:00:05]} 21. Bg5 {[%emt 0:05:36]} h6 {[%emt 0:01:26]} 22. Bxf6 {[%emt 0:00:22]} Bxf6 {[%emt 0:00:27]} 23. e3 {[%emt 0:02:17]} Be7 {[%emt 0:02:15]} 24. Nfe5 {[%emt 0:02:52]} Nxe5 {[%emt 0:02:36]} 25. Nxe5 {[%emt 0:00:16]} Qc1+ {[%emt 0:04:21]} 26. Bf1 {[%emt 0:00:04]} b5 {[%emt 0:00:27]} 27. Nd3 {[%emt 0:08:18]} Qd2 {[%emt 0:03:13]} 28. Qc3 {[%emt 0:07:01]} Qxc3 {[%emt 0:00:06]} 29. bxc3 {[%emt 0:00:02]} Ba3 {[%emt 0:01:35]} 30. Be2 {[%emt 0:00:22]} Kf8 {[%emt 0:01:01]} 31. Kf1 {[%emt 0:00:19]} f6 {[%emt 0:02:18]} 32. Ke1 {[%emt 0:00:29]} Ke7 {[%emt 0:00:29]} 33. Kd2 {[%emt 0:00:52]} Bd6 {[%emt 0:00:19]} 34. Kc2 {[%emt 0:04:25]} a5 {[%emt 0:03:13]} 35. Nc1 {[%emt 0:01:38]} Bc6 {[%emt 0:01:20]} 36. Nb3 {[%emt 0:00:13]} Bc7 {[%emt 0:00:34]} 37. Nc5 {[%emt 0:00:56]} g6 {[%emt 0:08:19]} 38. Bd3 {[%emt 0:01:07]} f5 {[%emt 0:07:21]} 39. h4 {[%emt 0:01:45]} g5 {[%emt 0:04:55]} 40. hxg5 {[%emt 0:00:00]} hxg5 {[%emt 0:00:00]} 41. Be2 {[%emt 0:07:01]} Be8 {[%emt 0:04:57]} 42. f4 {[%emt 0:01:48]} 1/2-1/2

[Event "RUS-chTW Premier 2019"]
[Site "Sochi"]
[Date "2019.05.01"]
[Round "1.2"]
[White "Kovalevskaya, Ekaterina"]
[Black "Zaiatz, Elena"]
[Result "1/2-1/2"]
[ECO "C47"]
[WhiteElo "2413"]
[BlackElo "2345"]
[Annotator "NA"]
[PlyCount "147"]
[EventDate "2019.04.30"]
[EventType "team-tourn"]
[EventCountry "RUS"]
[SourceTitle "playchess.com"]
[Source "ChessBase"]
[SourceQuality "1"]
[TimeControl "40/5400+30:1800+30"]

1. e4 {[%emt 0:00:00]} e5 {[%emt 0:00:00]} 2. Nf3 {[%emt 0:00:00]} Nc6 {[%emt 0:00:00]} 3. Nc3 {[%emt 0:00:00]} Nf6 {[%emt 0:00:05]} 4. d4 {[%emt 0:00:00]} exd4 {[%emt 0:00:24]} 5. Nxd4 {[%emt 0:00:01]} Bb4 {[%emt 0:00:17]} 6. Nxc6 {[%emt 0:00:06]} bxc6 {[%emt 0:00:08]} 7. Bd3 {[%emt 0:00:06]} d5 {[%emt 0:00:11]} 8. exd5 {[%emt 0:00:08]} cxd5 {[%emt 0:00:10]} 9. O-O {[%emt 0:00:06]} O-O {[%emt 0:00:04]} 10. Bg5 {[%emt 0:00:11]} c6 {[%emt 0:00:23]} 11. Qf3 {[%emt 0:00:10]} h6 {[%emt 0:01:01]} 12. Bxf6 {[%emt 0:00:08]} Qxf6 {[%emt 0:00:04]} 13. Qxf6 {[%emt 0:00:07]} gxf6 {[%emt 0:00:04]} 14. Ne2 {[%emt 0:00:56]} Rb8 {[%emt 0:05:16]} 15. b3 {[%emt 0:05:48]} Be6 {[%emt 0:09:38]} 16. Ng3 {[%emt 0:03:09]} Bc3 {[%emt 0:15:06]} 17. Rad1 {[%emt 0:03:06]} Rfe8 {[%emt 0:05:44]} 18. Nf5 {[%emt 0:15:36]} h5 {[%emt 0:04:56]} 19. f4 {[%emt 0:06:13]} Kf8 {[%emt 0:18:57]} 20. Rf3 {[%emt 0:03:29]} Rb4 {[%emt 0:02:07]} 21. a3 {[%emt 0:27:37]} Bxf5 {[%emt 0:05:35]} 22. Bxf5 {[%emt 0:00:03]} Rd4 {[%emt 0:00:03]} 23. Rxd4 {[%emt 0:06:59]} Bxd4+ {[%emt 0:00:06]} 24. Kf1 {[%emt 0:00:03]} Re3 {[%emt 0:03:45]} 25. Rxe3 {[%emt 0:12:10]} Bxe3 {[%emt 0:00:05]} 26. g3 {[%emt 0:00:04]} h4 {[%emt 0:02:53]} 27. Kg2 {[%emt 0:01:57]} a5 {[%emt 0:07:19]} 28. a4 {[%emt 0:00:44]} c5 {[%emt 0:00:31]} 29. Bd3 {[%emt 0:00:22]} hxg3 {[%emt 0:01:25]} 30. Kxg3 {[%emt 0:00:06]} f5 {[%emt 0:08:03]} 31. Bxf5 {[%emt 0:02:57]} c4 {[%emt 0:03:31]} 32. bxc4 {[%emt 0:01:10]} dxc4 {[%emt 0:00:03]} 33. Kf3 {[%emt 0:04:34]} Bd4 {[%emt 0:01:49]} 34. h4 {[%emt 0:01:56]} Kg7 {[%emt 0:00:25]} 35. Ke4 {[%emt 0:00:32]} Bf6 {[%emt 0:00:25]} 36. h5 {[%emt 0:00:05]} c3 {[%emt 0:00:30]} 37. Bg4 {[%emt 0:01:29]} Be7 {[%emt 0:02:16]} 38. Be2 {[%emt 0:00:15]} Bd8 {[%emt 0:00:17]} 39. Kd3 {[%emt 0:02:40]} Bf6 {[%emt 0:00:07]} 40. Bf3 {[%emt 0:00:00]} Kh6 {[%emt 0:00:00]} 41. Kc4 {[%emt 0:00:47]} Kg7 {[%emt 0:00:42]} 42. Bd5 {[%emt 0:00:39]} Kg8 {[%emt 0:02:16]} 43. Kb5 {[%emt 0:21:12]} Bd8 {[%emt 0:00:05]} 44. Kc6 {[%emt 0:00:24]} Kg7 {[%emt 0:00:35]} 45. Kd7 {[%emt 0:01:20]} Bb6 {[%emt 0:02:15]} 46. f5 {[%emt 0:03:54]} f6 {[%emt 0:08:01]} 47. Kd6 {[%emt 0:00:45]} Bd8 {[%emt 0:00:34]} 48. Bf3 {[%emt 0:00:48]} Bb6 {[%emt 0:01:27]} 49. Kd5 {[%emt 0:04:20]} Bc7 {[%emt 0:00:11]} 50. Ke6 {[%emt 0:00:06]} Bd8 {[%emt 0:00:28]} 51. Bc6 {[%emt 0:00:56]} Bb6 {[%emt 0:00:29]} 52. Kd6 {[%emt 0:00:36]} Bd8 {[%emt 0:00:13]} 53. Be8 {[%emt 0:00:28]} Bb6 {[%emt 0:00:36]} 54. Kc6 {[%emt 0:01:37]} Bd8 {[%emt 0:00:06]} 55. Bg6 {[%emt 0:00:08]} Kh6 {[%emt 0:00:12]} 56. Kd7 {[%emt 0:00:15]} Bb6 {[%emt 0:00:05]} 57. Ke6 {[%emt 0:01:59]} Kg7 {[%emt 0:00:10]} 58. Be8 {[%emt 0:01:28]} Bd8 {[%emt 0:00:09]} 59. Bb5 {[%emt 0:00:06]} Bb6 {[%emt 0:00:43]} 60. Bd3 {[%emt 0:00:55]} Bd8 {[%emt 0:00:08]} 61. Kd6 {[%emt 0:00:22]} Bb6 {[%emt 0:00:25]} 62. Ke7 {[%emt 0:00:20]} Bc5+ {[%emt 0:00:12]} 63. Ke6 {[%emt 0:00:13]} Bb6 {[%emt 0:00:06]} 64. h6+ {[%emt 0:01:27]} Kxh6 {[%emt 0:00:04]} 65. Kxf6 {[%emt 0:00:04]} Bd8+ {[%emt 0:02:41]} 66. Kf7 {[%emt 0:00:08]} Kg5 {[%emt 0:00:08]} 67. Ke6 {[%emt 0:00:13]} Bf6 {[%emt 0:00:28]} 68. Kd7 {[%emt 0:00:09]} Kh6 {[%emt 0:08:18]} 69. Kc6 {[%emt 0:01:51]} Kg7 {[%emt 0:00:20]} 70. Kb5 {[%emt 0:00:09]} Bd8 {[%emt 0:00:04]} 71. Be4 {[%emt 0:00:05]} Bc7 {[%emt 0:02:56]} 72. Kc4 {[%emt 0:00:16]} Be5 {[%emt 0:00:10]} 73. Kc5 {[%emt 0:00:04]} Bf6 {[%emt 0:00:16]} 74. Kb5 {[%emt 0:00:08]} 1/2-1/2

[Event "RUS-chTW Premier 2019"]
[Site "Sochi"]
[Date "2019.05.01"]
[Round "1.3"]
[White "Tsiganova, Monika"]
[Black "Bivol, Alina"]
[Result "0-1"]
[ECO "E68"]
[WhiteElo "2052"]
[BlackElo "2393"]
[Annotator "NA"]
[PlyCount "104"]
[EventDate "2019.04.30"]
[EventType "team-tourn"]
[EventCountry "RUS"]
[SourceTitle "playchess.com"]
[Source "ChessBase"]
[SourceQuality "1"]
[TimeControl "40/5400+30:1800+30"]

1. d4 {[%emt 0:00:00]} Nf6 {[%emt 0:00:00]} 2. Nf3 {[%emt 0:00:10]} g6 {[%emt 0:00:00]} 3. c4 {[%emt 0:00:37]} Bg7 {[%emt 0:00:00]} 4. Nc3 {[%emt 0:00:08]} d6 {[%emt 0:00:31]} 5. g3 {[%emt 0:01:00]} O-O {[%emt 0:00:56]} 6. Bg2 {[%emt 0:00:07]} Nbd7 {[%emt 0:00:05]} 7. O-O {[%emt 0:00:25]} e5 {[%emt 0:00:05]} 8. e4 {[%emt 0:06:02]} exd4 {[%emt 0:01:01]} 9. Nxd4 {[%emt 0:00:08]} Re8 {[%emt 0:00:09]} 10. Re1 {[%emt 0:02:32]} Nc5 {[%emt 0:00:11]} 11. h3 {[%emt 0:04:20]} Bd7 {[%emt 0:00:59]} 12. b3 {[%emt 0:08:35]} a5 {[%emt 0:03:24]} 13. Rb1 {[%emt 0:05:21]} h6 {[%emt 0:01:14]} 14. Bb2 {[%emt 0:08:54]} Qc8 {[%emt 0:13:01]} 15. Kh2 {[%emt 0:01:06]} h5 {[%emt 0:01:24]} 16. Qd2 {[%emt 0:09:11]} Ne6 {[%emt 0:15:11]} 17. Nd5 {[%emt 0:06:10]} Nxd5 {[%emt 0:08:29]} 18. exd5 {[%emt 0:06:52]} Nf8 {[%emt 0:03:21]} 19. a4 {[%emt 0:07:06]} Nh7 {[%emt 0:01:55]} 20. Bc3 {[%emt 0:07:19]} Qd8 {[%emt 0:01:43]} 21. Rxe8+ {[%emt 0:02:28]} Bxe8 {[%emt 0:00:02]} 22. Re1 {[%emt 0:02:22]} Bd7 {[%emt 0:00:46]} 23. f4 {[%emt 0:04:17]} Qf8 {[%emt 0:02:33]} 24. Be4 {[%emt 0:03:27]} b6 {[%emt 0:02:47]} 25. Ne6 {[%emt 0:07:01]} Bxc3 {[%emt 0:08:03]} 26. Qxc3 {[%emt 0:00:20]} Qh6 {[%emt 0:01:58]} 27. Nxc7 {[%emt 0:02:18]} Rc8 {[%emt 0:00:21]} 28. Nb5 {[%emt 0:00:20]} Bxb5 {[%emt 0:00:08]} 29. axb5 {[%emt 0:00:06]} h4 {[%emt 0:00:30]} 30. Bg2 {[%emt 0:00:41]} hxg3+ {[%emt 0:01:00]} 31. Qxg3 {[%emt 0:00:22]} Nf6 {[%emt 0:00:26]} 32. Qg5 {[%emt 0:03:46]} Qxg5 {[%emt 0:00:20]} 33. fxg5 {[%emt 0:00:06]} Nd7 {[%emt 0:00:02]} 34. Bf3 {[%emt 0:01:48]} Ne5 {[%emt 0:00:22]} 35. Be2 {[%emt 0:00:14]} Re8 {[%emt 0:00:43]} 36. Rf1 {[%emt 0:01:12]} Nd7 {[%emt 0:00:45]} 37. Bg4 {[%emt 0:00:26]} Nc5 {[%emt 0:00:10]} 38. Rf3 {[%emt 0:00:47]} Re2+ {[%emt 0:00:26]} 39. Kg1 {[%emt 0:00:38]} Rb2 {[%emt 0:00:39]} 40. Re3 {[%emt 0:00:00]} Kf8 {[%emt 0:00:00]} 41. Rf3 {[%emt 0:16:46]} Kg7 {[%emt 0:02:58]} 42. Re3 {[%emt 0:02:35]} Nxb3 {[%emt 0:00:25]} 43. Re7 {[%emt 0:00:16]} Nd2 {[%emt 0:01:44]} 44. Be2 {[%emt 0:04:14]} a4 {[%emt 0:02:39]} 45. Ra7 {[%emt 0:00:18]} Rb4 {[%emt 0:02:23]} 46. Ra6 {[%emt 0:00:10]} Ne4 {[%emt 0:01:21]} 47. h4 {[%emt 0:05:29]} Nc5 {[%emt 0:04:25]} 48. Ra7 {[%emt 0:00:08]} Rb3 {[%emt 0:00:03]} 49. Kg2 {[%emt 0:03:10]} Re3 {[%emt 0:01:56]} 50. Bg4 {[%emt 0:01:01]} Kf8 {[%emt 0:03:14]} 51. Bd7 {[%emt 0:01:15]} Re4 {[%emt 0:04:36]} 52. Ra8+ {[%emt 0:00:35]} Kg7 {[%emt 0:00:01]} 0-1

[Event "RUS-chTW Premier 2019"]
[Site "Sochi"]
[Date "2019.05.01"]
[Round "1.4"]
[White "Voit, Daria"]
[Black "Bezgodova, Svetlana"]
[Result "1-0"]
[ECO "A53"]
[WhiteElo "2340"]
[BlackElo "2054"]
[Annotator "NA"]
[PlyCount "97"]
[EventDate "2019.04.30"]
[EventType "team-tourn"]
[EventCountry "RUS"]
[SourceTitle "playchess.com"]
[Source "ChessBase"]
[SourceQuality "1"]
[TimeControl "40/5400+30:1800+30"]

1. d4 {[%emt 0:00:00]} Nf6 {[%emt 0:00:00]} 2. c4 {[%emt 0:00:00]} d6 {[%emt 0:00:00]} 3. Nc3 {[%emt 0:00:00]} Nbd7 {[%emt 0:00:01]} 4. Nf3 {[%emt 0:00:01]} c6 {[%emt 0:00:10]} 5. Bg5 {[%emt 0:02:15]} h6 {[%emt 0:00:41]} 6. Bh4 {[%emt 0:00:03]} g5 {[%emt 0:00:14]} 7. Bg3 {[%emt 0:00:02]} Nh5 {[%emt 0:00:11]} 8. e3 {[%emt 0:00:51]} Bg7 {[%emt 0:00:12]} 9. Be2 {[%emt 0:00:52]} Ndf6 {[%emt 0:00:25]} 10. Qc2 {[%emt 0:02:01]} Qa5 {[%emt 0:00:26]} 11. Bd3 {[%emt 0:03:14]} Bd7 {[%emt 0:01:51]} 12. a3 {[%emt 0:19:26]} Kf8 {[%emt 0:01:39]} 13. b4 {[%emt 0:06:21]} Qc7 {[%emt 0:00:32]} 14. O-O {[%emt 0:01:44]} Nxg3 {[%emt 0:02:45]} 15. fxg3 {[%emt 0:00:18]} Re8 {[%emt 0:00:56]} 16. e4 {[%emt 0:24:19]} e5 {[%emt 0:02:21]} 17. d5 {[%emt 0:06:08]} c5 {[%emt 0:01:40]} 18. Nd1 {[%emt 0:02:27]} a6 {[%emt 0:01:27]} 19. Ne3 {[%emt 0:01:20]} Ng4 {[%emt 0:03:17]} 20. Nxg4 {[%emt 0:06:41]} Bxg4 {[%emt 0:00:17]} 21. Ne1 {[%emt 0:00:19]} f6 {[%emt 0:01:00]} 22. Rb1 {[%emt 0:05:34]} Bc8 {[%emt 0:02:03]} 23. Qf2 {[%emt 0:00:37]} Kg8 {[%emt 0:01:47]} 24. Nc2 {[%emt 0:00:36]} Rf8 {[%emt 0:01:09]} 25. Ne3 {[%emt 0:00:58]} Rf7 {[%emt 0:04:22]} 26. Be2 {[%emt 0:00:48]} h5 {[%emt 0:00:38]} 27. Nf5 {[%emt 0:03:36]} Bf8 {[%emt 0:00:42]} 28. Rb3 {[%emt 0:04:13]} cxb4 {[%emt 0:04:09]} 29. axb4 {[%emt 0:00:17]} b5 {[%emt 0:00:35]} 30. cxb5 {[%emt 0:06:41]} Qc2 {[%emt 0:01:53]} 31. Qe3 {[%emt 0:01:15]} Bxf5 {[%emt 0:01:49]} 32. Rxf5 {[%emt 0:00:26]} axb5 {[%emt 0:00:09]} 33. Bxb5 {[%emt 0:01:20]} g4 {[%emt 0:00:11]} 34. Rf2 {[%emt 0:01:15]} Qd1+ {[%emt 0:00:57]} 35. Rf1 {[%emt 0:00:12]} Qc2 {[%emt 0:00:12]} 36. Be8 {[%emt 0:01:02]} Re7 {[%emt 0:00:45]} 37. Bc6 {[%emt 0:00:30]} Bh6 {[%emt 0:01:38]} 38. Qd3 {[%emt 0:00:26]} Qa2 {[%emt 0:00:37]} 39. Ra3 {[%emt 0:00:37]} Qb2 {[%emt 0:00:54]} 40. b5 {[%emt 0:00:00]} Kg7 {[%emt 0:00:00]} 41. Rb1 {[%emt 0:05:05]} Qd4+ {[%emt 0:02:04]} 42. Qxd4 {[%emt 0:02:00]} exd4 {[%emt 0:00:06]} 43. b6 {[%emt 0:00:08]} Be3+ {[%emt 0:01:36]} 44. Kf1 {[%emt 0:00:31]} f5 {[%emt 0:00:26]} 45. e5 {[%emt 0:08:50]} h4 {[%emt 0:03:29]} 46. gxh4 {[%emt 0:01:24]} Rxh4 {[%emt 0:01:35]} 47. b7 {[%emt 0:03:53]} Rxh2 {[%emt 0:02:12]} 48. b8=Q {[%emt 0:01:00]} Bg5 {[%emt 0:01:05]} 49. Rb7 {[%emt 0:00:37]} 1-0

[Event "RUS-chTW Premier 2019"]
[Site "Sochi"]
[Date "2019.05.01"]
[Round "1.5"]
[White "Ushenina, Anna"]
[Black "Borisova, Ekaterina"]
[Result "1-0"]
[ECO "D15"]
[WhiteElo "2442"]
[BlackElo "2292"]
[Annotator "NA"]
[PlyCount "65"]
[EventDate "2019.04.30"]
[EventType "team-tourn"]
[EventCountry "RUS"]
[SourceTitle "playchess.com"]
[Source "ChessBase"]
[SourceQuality "1"]
[TimeControl "40/5400+30:1800+30"]

1. d4 {[%emt 0:00:00]} d5 {[%emt 0:00:00]} 2. Nf3 {[%emt 0:00:19]} Nf6 {[%emt 0:00:00]} 3. c4 {[%emt 0:00:18]} c6 {[%emt 0:00:00]} 4. Nc3 {[%emt 0:00:44]} a6 {[%emt 0:00:00]} 5. e3 {[%emt 0:00:35]} b5 {[%emt 0:00:00]} 6. b3 {[%emt 0:00:12]} Bg4 {[%emt 0:00:00]} 7. Be2 {[%emt 0:01:38]} Nbd7 {[%emt 0:00:06]} 8. h3 {[%emt 0:01:06]} Bh5 {[%emt 0:00:39]} 9. g4 {[%emt 0:01:25]} Bg6 {[%emt 0:00:04]} 10. Ne5 {[%emt 0:00:12]} Nxe5 {[%emt 0:01:27]} 11. dxe5 {[%emt 0:00:16]} Nd7 {[%emt 0:01:27]} 12. cxd5 {[%emt 0:00:50]} cxd5 {[%emt 0:00:05]} 13. e6 {[%emt 0:00:54]} fxe6 {[%emt 0:06:08]} 14. Bb2 {[%emt 0:00:04]} Rc8 {[%emt 0:16:27]} 15. Rc1 {[%emt 0:20:59]} Nf6 {[%emt 0:11:50]} 16. O-O {[%emt 0:18:56]} e5 {[%emt 0:10:53]} 17. Nxd5 {[%emt 0:04:50]} Rxc1 {[%emt 0:12:21]} 18. Nxf6+ {[%emt 0:00:23]} exf6 {[%emt 0:00:48]} 19. Qxc1 {[%emt 0:00:31]} Be4 {[%emt 0:00:17]} 20. a4 {[%emt 0:10:09]} Qb8 {[%emt 0:04:20]} 21. axb5 {[%emt 0:09:50]} axb5 {[%emt 0:00:13]} 22. Rd1 {[%emt 0:15:45]} Be7 {[%emt 0:02:14]} 23. Ba3 {[%emt 0:00:06]} b4 {[%emt 0:03:58]} 24. Bb2 {[%emt 0:00:01]} Qb7 {[%emt 0:03:35]} 25. Qc4 {[%emt 0:00:23]} g5 {[%emt 0:12:05]} 26. Qe6 {[%emt 0:03:38]} Qc6 {[%emt 0:01:41]} 27. Bb5 {[%emt 0:00:51]} Qxb5 {[%emt 0:00:25]} 28. Rc1 {[%emt 0:00:01]} Qd7 {[%emt 0:03:35]} 29. Rc8+ {[%emt 0:00:05]} Qxc8 {[%emt 0:00:03]} 30. Qxc8+ {[%emt 0:00:02]} Bd8 {[%emt 0:00:04]} 31. Qe6+ {[%emt 0:03:55]} Be7 {[%emt 0:00:44]} 32. Bxe5 {[%emt 0:01:03]} fxe5 {[%emt 0:00:33]} 33. Qxe5 {[%emt 0:00:03]} 1-0

[Event "RUS-chTW Premier 2019"]
[Site "Sochi"]
[Date "2019.05.01"]
[Round "1.6"]
[White "Smirnova, Ekaterina"]
[Black "Pogonina, Natalija"]
[Result "1/2-1/2"]
[ECO "D35"]
[WhiteElo "2204"]
[BlackElo "2453"]
[Annotator "ChessBase"]
[PlyCount "120"]
[EventDate "2019.04.30"]
[EventType "team-tourn"]
[EventCountry "RUS"]
[SourceTitle "playchess.com"]
[Source "ChessBase"]
[SourceQuality "1"]
[TimeControl "40/5400+30:1800+30"]

1. d4 {[%emt 0:00:00]} d5 {[%emt 0:00:00]} 2. c4 {[%emt 0:00:00]} e6 {[%emt 0:00:00]} 3. Nc3 {[%emt 0:00:00]} Nf6 {[%emt 0:00:09]} 4. cxd5 {[%emt 0:00:00]} exd5 {[%emt 0:00:04]} 5. Bg5 {[%emt 0:00:01]} c6 {[%emt 0:00:15]} 6. e3 {[%emt 0:00:05]} Be7 {[%emt 0:01:03]} 7. Bd3 {[%emt 0:00:39]} Nbd7 {[%emt 0:00:24]} 8. Nf3 {[%emt 0:00:23]} O-O {[%emt 0:03:00]} 9. Qc2 {[%emt 0:00:55]} Re8 {[%emt 0:00:43]} 10. O-O {[%emt 0:00:09]} Nf8 {[%emt 0:00:07]} 11. h3 {[%emt 0:00:23]} Be6 {[%emt 0:01:53]} 12. Ne5 {[%emt 0:00:08]} N6d7 {[%emt 0:00:35]} 13. Bxe7 {[%emt 0:00:07]} Qxe7 {[%emt 0:00:23]} 14. f4 {[%emt 0:00:09]} f6 {[%emt 0:00:35]} 15. Nf3 {[%emt 0:01:15]} Bf7 {[%emt 0:01:17]} 16. Rae1 {[%emt 0:00:17]} Nb6 {[%emt 0:00:34]} 17. f5 {[%emt 0:07:54]} Rad8 {[%emt 0:00:44]} 18. g4 {[%emt 0:09:42]} Nc8 {[%emt 0:01:25]} 19. h4 {[%emt 0:03:50]} Nd6 {[%emt 0:16:32]} 20. g5 {[%emt 0:04:26]} Bh5 {[%emt 0:06:22]} 21. Qg2 {[%emt 0:03:52]} Kh8 {[%emt 0:02:37]} 22. g6 {[%emt 0:10:25]} Qd7 {[%emt 0:15:01]} 23. Nd2 {[%emt 0:04:06]} hxg6 {[%emt 0:12:54]} 24. fxg6 {[%emt 0:00:12]} Qg4 {[%emt 0:01:29]} 25. Qxg4 {[%emt 0:01:05]} Bxg4 {[%emt 0:00:04]} 26. Kf2 {[%emt 0:00:16]} Bh5 {[%emt 0:06:04]} 27. Rg1 {[%emt 0:00:17]} f5 {[%emt 0:06:09]} 28. Nf3 {[%emt 0:20:37]} Bxg6 {[%emt 0:01:47]} 29. Ne5 {[%emt 0:00:10]} Bh7 {[%emt 0:02:04]} 30. Ne2 {[%emt 0:00:43]} Ne6 {[%emt 0:08:10]} 31. Nf4 {[%emt 0:00:50]} Kg8 {[%emt 0:04:57]} 32. b4 {[%emt 0:03:43]} Re7 {[%emt 0:03:55]} 33. a4 {[%emt 0:02:01]} Ne4+ {[%emt 0:01:20]} 34. Bxe4 {[%emt 0:00:08]} fxe4 {[%emt 0:00:32]} 35. Nxe6 {[%emt 0:00:25]} Rxe6 {[%emt 0:00:06]} 36. Kg3 {[%emt 0:00:59]} Rf6 {[%emt 0:02:33]} 37. Rc1 {[%emt 0:04:05]} Bf5 {[%emt 0:01:15]} 38. b5 {[%emt 0:00:59]} Bd7 {[%emt 0:00:59]} 39. bxc6 {[%emt 0:00:34]} Bxc6 {[%emt 0:00:10]} 40. a5 {[%emt 0:00:00]} Rdd6 {[%emt 0:00:00]} 41. Rc3 {[%emt 0:03:35]} Kh7 {[%emt 0:06:53]} 42. Rgc1 {[%emt 0:00:56]} a6 {[%emt 0:08:41]} 43. Rb3 {[%emt 0:03:05]} Bb5 {[%emt 0:02:15]} 44. Rc7 {[%emt 0:01:49]} b6 {[%emt 0:02:34]} 45. axb6 {[%emt 0:01:04]} Rxb6 {[%emt 0:00:14]} 46. Ra7 {[%emt 0:02:13]} Rf1 {[%emt 0:04:04]} 47. Rb2 {[%emt 0:02:36]} Rbf6 {[%emt 0:02:01]} 48. Rg2 {[%emt 0:00:39]} Rh1 {[%emt 0:01:13]} 49. Rc2 {[%emt 0:04:45]} Bf1 {[%emt 0:06:52]} 50. Rf7 {[%emt 0:03:46]} Rh3+ {[%emt 0:01:17]} 51. Kg4 {[%emt 0:00:01]} Rxe3 {[%emt 0:00:35]} 52. Rxf6 {[%emt 0:01:08]} gxf6 {[%emt 0:00:05]} 53. Rc7+ {[%emt 0:00:12]} Kg8 {[%emt 0:00:41]} 54. Ng6 {[%emt 0:01:54]} Be2+ {[%emt 0:00:45]} 55. Kf5 {[%emt 0:00:21]} Rf3+ {[%emt 0:00:29]} 56. Ke6 {[%emt 0:00:40]} Rf2 {[%emt 0:00:34]} 57. Ne7+ {[%emt 0:01:20]} Kf8 {[%emt 0:00:34]} 58. Ng6+ {[%emt 0:00:37]} Kg8 {[%emt 0:00:04]} 59. Ne7+ {[%emt 0:00:19]} Kf8 {[%emt 0:00:33]} 60. Ng6+ {[%emt 0:00:07]} Kg8 {[%emt 0:00:04]} 1/2-1/2

[Event "RUS-chTW Premier 2019"]
[Site "Sochi"]
[Date "2019.05.01"]
[Round "1.7"]
[White "Girya, Olga"]
[Black "Tomashevskaya, Lidia"]
[Result "1-0"]
[ECO "D28"]
[WhiteElo "2449"]
[BlackElo "2128"]
[Annotator "NA RC"]
[PlyCount "51"]
[EventDate "2019.04.30"]
[EventType "team-tourn"]
[EventCountry "RUS"]
[SourceTitle "playchess.com"]
[Source "ChessBase"]
[SourceQuality "1"]
[TimeControl "40/5400+30:1800+30"]

1. d4 {[%emt 0:00:00]} d5 {[%emt 0:00:00]} 2. c4 {[%emt 0:00:00]} dxc4 {[%emt 0:00:00]} 3. e3 {[%emt 0:00:01]} Nf6 {[%emt 0:00:00]} 4. Bxc4 {[%emt 0:00:06]} e6 {[%emt 0:00:00]} 5. Nf3 {[%emt 0:00:09]} c5 {[%emt 0:00:00]} 6. O-O {[%emt 0:00:06]} a6 {[%emt 0:00:04]} 7. Qe2 {[%emt 0:00:48]} Nc6 {[%emt 0:01:25]} 8. Rd1 {[%emt 0:00:37]} Qc7 {[%emt 0:01:14]} 9. dxc5 {[%emt 0:03:41]} Bxc5 {[%emt 0:00:06]} 10. a3 {[%emt 0:00:07]} O-O {[%emt 0:01:45]} 11. b4 {[%emt 0:01:35]} Bd6 {[%emt 0:03:41]} 12. Bb2 {[%emt 0:00:26]} Ne5 {[%emt 0:04:53]} 13. Nbd2 {[%emt 0:17:46]} Bd7 {[%emt 0:12:31]} 14. Rac1 {[%emt 0:06:30]} Bc6 {[%emt 0:00:31]} 15. Bb3 {[%emt 0:18:36]} Nxf3+ {[%emt 0:26:12]} 16. Nxf3 {[%emt 0:00:07]} Ne4 {[%emt 0:00:59]} 17. Rd4 {[%emt 0:03:40]} Nf6 {[%emt 0:06:24]} 18. Rdd1 {[%emt 0:06:32]} Ne4 {[%emt 0:08:36]} 19. Bc2 {[%emt 0:02:24]} Qe7 {[%emt 0:01:12]} 20. Bb1 {[%emt 0:08:40]} Bd5 {[%emt 0:04:17]} 21. Ne5 {[%emt 0:10:12]} Rac8 {[%emt 0:04:39]} 22. f3 {[%emt 0:02:11]} Nf6 {[%emt 0:05:04]} 23. Qd3 {[%emt 0:00:32]} Rxc1 {[%emt 0:05:23]} 24. Rxc1 {[%emt 0:00:04]} Rd8 {[%emt 0:06:24]} 25. Ng4 {[%emt 0:00:52]} Bxh2+ {[%emt 0:02:26]} 26. Nxh2 {[%emt 0:00:29]} 1-0